[Event "LEM Niedersachsen-A-Open 2025"]
[Site "Verden"]
[Date "2025.01.02"]
[Round "2.17"]
[White "Oblender, Rudi"]
[Black "Ophardt, Paul"]
[Result "0-1"]
[ECO "C13"]
[WhiteElo "1779"]
[BlackElo "2015"]
[Annotator "NA RC"]
[PlyCount "110"]
[EventDate "2024.12.27"]
[EventType "swiss"]
[EventCountry "GER"]
[SourceTitle "playchess.com"]
[Source "ChessBase"]
[SourceQuality "1"]
[TimeControl "40/5400+30:1800+30"]

1. e4 {[%emt 0:00:02]} e6 {[%emt 0:00:11]} 2. d4 {[%emt 0:00:05]} d5 {[%emt 0:00:05]} 3. Nc3 {[%emt 0:00:01]} Nf6 {[%emt 0:00:36]} 4. Bg5 {[%emt 0:00:17]} dxe4 {[%emt 0:01:18]} 5. Nxe4 {[%emt 0:00:09]} Be7 {[%emt 0:00:30]} 6. Nxf6+ {[%emt 0:00:06]} Bxf6 {[%emt 0:00:29]} 7. Bxf6 {[%emt 0:00:04]} Qxf6 {[%emt 0:00:14]} 8. c3 {[%emt 0:00:08]} Nd7 {[%emt 0:10:03]} 9. Qf3 {[%emt 0:00:10]} Qh6 {[%emt 0:09:18]} 10. Bd3 {[%emt 0:01:04]} O-O {[%emt 0:03:39]} 11. Qh3 {[%emt 0:00:10]} Qxh3 {[%emt 0:02:09]} 12. Nxh3 {[%emt 0:00:11]} c5 {[%emt 0:00:34]} 13. dxc5 {[%emt 0:00:26]} Nxc5 {[%emt 0:00:30]} 14. Bc2 {[%emt 0:00:05]} a5 {[%emt 0:03:48]} 15. O-O {[%emt 0:01:03]} a4 {[%emt 0:10:58]} 16. f3 {[%emt 0:01:25]} h6 {[%emt 0:04:09]} 17. Nf2 {[%emt 0:00:14]} Ra6 {[%emt 0:02:34]} 18. Ne4 {[%emt 0:01:00]} Nxe4 {[%emt 0:00:36]} 19. Bxe4 {[%emt 0:00:10]} Rb6 {[%emt 0:00:28]} 20. Rab1 {[%emt 0:02:27]} e5 {[%emt 0:04:08]} 21. Rfd1 {[%emt 0:01:49]} Be6 {[%emt 0:00:40]} 22. Bd5 {[%emt 0:01:38]} Bf5 {[%emt 0:01:13]} 23. Be4 {[%emt 0:00:13]} Bxe4 {[%emt 0:00:34]} 24. fxe4 {[%emt 0:00:06]} Rc8 {[%emt 0:01:12]} 25. Rd3 {[%emt 0:01:50]} Rc4 {[%emt 0:10:42]} 26. Re3 {[%emt 0:00:10]} Rc7 {[%emt 0:00:23]} 27. Rd3 {[%emt 0:01:29]} g6 {[%emt 0:00:25]} 28. g4 {[%emt 0:04:44]} Kg7 {[%emt 0:00:51]} 29. Kf2 {[%emt 0:00:16]} Rf6+ {[%emt 0:03:03]} 30. Rf3 {[%emt 0:00:27]} Rxf3+ {[%emt 0:00:35]} 31. Kxf3 {[%emt 0:00:02]} a3 {[%emt 0:00:15]} 32. bxa3 {[%emt 0:01:09]} Rxc3+ {[%emt 0:00:11]} 33. Kf2 {[%emt 0:00:31]} Rxa3 {[%emt 0:03:21]} 34. Rxb7 {[%emt 0:00:06]} Rxa2+ {[%emt 0:00:09]} 35. Kg3 {[%emt 0:00:07]} Ra3+ {[%emt 0:00:41]} 36. Kf2 {[%emt 0:02:21]} Kf6 {[%emt 0:01:47]} 37. Kg2 {[%emt 0:00:26]} Re3 {[%emt 0:00:54]} 38. h4 {[%emt 0:08:14]} Rxe4 {[%emt 0:02:13]} 39. Rb6+ {[%emt 0:00:05]} Kg7 {[%emt 0:00:21]} 40. Kf3 {[%emt 0:00:08]} Rf4+ {[%emt 0:00:51]} 41. Kg3 {[%emt 0:30:11]} Rf6 {[%emt 0:30:20]} 42. Rb3 {[%emt 0:00:50]} Re6 {[%emt 0:00:41]} 43. Re3 {[%emt 0:00:07]} f5 {[%emt 0:00:19]} 44. gxf5 {[%emt 0:00:04]} gxf5 {[%emt 0:00:06]} 45. Kf3 {[%emt 0:00:07]} Kf6 {[%emt 0:00:12]} 46. Re2 {[%emt 0:00:41]} Ra6 {[%emt 0:00:15]} 47. Rb2 {[%emt 0:00:26]} Kg6 {[%emt 0:03:34]} 48. Rb5 {[%emt 0:00:23]} Re6 {[%emt 0:00:49]} 49. Kg3 {[%emt 0:00:15]} e4 {[%emt 0:00:48]} 50. Rb2 {[%emt 0:03:28]} e3 {[%emt 0:01:02]} 51. Kf3 {[%emt 0:01:12]} Kh5 {[%emt 0:01:35]} 52. Rh2 {[%emt 0:00:18]} e2 {[%emt 0:00:13]} 53. Rxe2 {[%emt 0:00:08]} Rxe2 {[%emt 0:00:06]} 54. Kxe2 {[%emt 0:00:11]} Kxh4 {[%emt 0:00:05]} 55. Kf3 {[%emt 0:00:02]} Kg5 {[%emt 0:00:17]} 0-1

[Event "LEM Niedersachsen-A-Open 2025"]
[Site "Verden"]
[Date "2025.01.02"]
[Round "2.18"]
[White "Amrhein, Thorsten"]
[Black "Aden, Keno"]
[Result "1-0"]
[ECO "B11"]
[WhiteElo "1979"]
[BlackElo "1889"]
[Annotator "NA RC"]
[PlyCount "59"]
[EventDate "2024.12.27"]
[EventType "swiss"]
[EventCountry "GER"]
[SourceTitle "playchess.com"]
[Source "ChessBase"]
[SourceQuality "1"]
[TimeControl "40/5400+30:1800+30"]

1. e4 {[%emt 0:00:04]} c6 {[%emt 0:00:02]} 2. Nc3 {[%emt 0:00:15]} d5 {[%emt 0:00:04]} 3. Nf3 {[%emt 0:00:12]} dxe4 {[%emt 0:00:15]} 4. Nxe4 {[%emt 0:00:13]} Nf6 {[%emt 0:00:23]} 5. Qe2 {[%emt 0:00:16]} Nxe4 {[%emt 0:00:05]} 6. Qxe4 {[%emt 0:00:07]} Nd7 {[%emt 0:00:05]} 7. Bc4 {[%emt 0:00:49]} Nf6 {[%emt 0:00:11]} 8. Ne5 {[%emt 0:00:35]} e6 {[%emt 0:00:09]} 9. Qe2 {[%emt 0:00:26]} b5 {[%emt 0:00:39]} 10. Bb3 {[%emt 0:12:31]} Qc7 {[%emt 0:03:32]} 11. d4 {[%emt 0:03:28]} Bd6 {[%emt 0:03:13]} 12. Bf4 {[%emt 0:01:14]} a5 {[%emt 0:01:30]} 13. c3 {[%emt 0:02:07]} O-O {[%emt 0:01:35]} 14. O-O {[%emt 0:01:16]} c5 {[%emt 0:10:07]} 15. dxc5 {[%emt 0:18:14]} Qxc5 {[%emt 0:01:15]} 16. Rfe1 {[%emt 0:06:06]} h6 {[%emt 0:32:13]} 17. Rad1 {[%emt 0:01:31]} Bc7 {[%emt 0:03:28]} 18. Qf3 {[%emt 0:03:12]} Rb8 {[%emt 0:04:39]} 19. Qe2 {[%emt 0:17:18]} Bb7 {[%emt 0:03:17]} 20. Bc2 {[%emt 0:07:36]} Rbd8 {[%emt 0:11:22]} 21. Bd3 {[%emt 0:06:33]} b4 {[%emt 0:13:36]} 22. cxb4 {[%emt 0:01:15]} Qxb4 {[%emt 0:00:15]} 23. Bg3 {[%emt 0:04:03]} Rd5 {[%emt 0:07:10]} 24. Nc6 {[%emt 0:02:21]} Bxc6 {[%emt 0:01:24]} 25. Bxc7 {[%emt 0:00:02]} Rc8 {[%emt 0:00:25]} 26. Be5 {[%emt 0:00:33]} Ng4 {[%emt 0:01:06]} 27. a3 {[%emt 0:01:50]} Qa4 {[%emt 0:01:23]} 28. b3 {[%emt 0:02:19]} Rxe5 {[%emt 0:00:34]} 29. bxa4 {[%emt 0:01:06]} Rxe2 {[%emt 0:00:07]} 30. Bxe2 {[%emt 0:00:20]} 1-0

[Event "LEM Niedersachsen-A-Open 2025"]
[Site "Verden"]
[Date "2025.01.02"]
[Round "2.19"]
[White "Boerma, Daniel"]
[Black "Moeller, Tom"]
[Result "0-1"]
[ECO "B40"]
[WhiteElo "1958"]
[BlackElo "1802"]
[Annotator "NA RC"]
[PlyCount "56"]
[EventDate "2024.12.27"]
[EventType "swiss"]
[EventCountry "GER"]
[SourceTitle "playchess.com"]
[Source "ChessBase"]
[SourceQuality "1"]
[TimeControl "40/5400+30:1800+30"]

1. e4 {[%emt 0:00:05]} c5 {[%emt 0:00:05]} 2. d3 {[%emt 0:00:09]} e6 {[%emt 0:00:05]} 3. Nf3 {[%emt 0:00:11]} Nc6 {[%emt 0:00:05]} 4. g3 {[%emt 0:00:09]} b5 {[%emt 0:01:06]} 5. a4 {[%emt 0:00:23]} b4 {[%emt 0:00:55]} 6. Bg2 {[%emt 0:00:39]} Qc7 {[%emt 0:00:53]} 7. O-O {[%emt 0:00:12]} Bb7 {[%emt 0:00:10]} 8. Re1 {[%emt 0:00:16]} Nf6 {[%emt 0:02:30]} 9. Nbd2 {[%emt 0:00:17]} Be7 {[%emt 0:01:39]} 10. Nc4 {[%emt 0:00:34]} d5 {[%emt 0:04:19]} 11. exd5 {[%emt 0:00:44]} Nxd5 {[%emt 0:00:28]} 12. Ng5 {[%emt 0:02:04]} Nd4 {[%emt 0:08:25]} 13. Ne4 {[%emt 0:03:02]} b3 {[%emt 0:03:16]} 14. cxb3 {[%emt 0:01:20]} O-O {[%emt 0:03:03]} 15. Bd2 {[%emt 0:00:18]} Ba6 {[%emt 0:08:35]} 16. Rc1 {[%emt 0:01:24]} Rab8 {[%emt 0:01:41]} 17. Nc3 {[%emt 0:02:54]} Nb4 {[%emt 0:02:03]} 18. Bf4 {[%emt 0:01:41]} Qd7 {[%emt 0:02:16]} 19. Bxb8 {[%emt 0:00:43]} Rxb8 {[%emt 0:00:05]} 20. Ne5 {[%emt 0:00:30]} Qd6 {[%emt 0:01:15]} 21. f4 {[%emt 0:07:13]} Nxb3 {[%emt 0:00:50]} 22. d4 {[%emt 0:07:32]} Nxc1 {[%emt 0:01:27]} 23. Qxc1 {[%emt 0:00:30]} f6 {[%emt 0:01:16]} 24. Nf3 {[%emt 0:01:18]} Nd3 {[%emt 0:00:27]} 25. Qe3 {[%emt 0:00:27]} Nxe1 {[%emt 0:00:29]} 26. Qxe1 {[%emt 0:00:10]} cxd4 {[%emt 0:00:46]} 27. Ne4 {[%emt 0:00:26]} Qd7 {[%emt 0:07:17]} 28. Ned2 {[%emt 0:01:52]} Rxb2 {[%emt 0:03:57]} 0-1

[Event "LEM Niedersachsen-A-Open 2025"]
[Site "Verden"]
[Date "2025.01.02"]
[Round "2.20"]
[White "Moeller, Jonas"]
[Black "Klages, Jonas"]
[Result "1-0"]
[ECO "C02"]
[WhiteElo "1934"]
[BlackElo "1776"]
[Annotator "NA RC"]
[PlyCount "113"]
[EventDate "2024.12.27"]
[EventType "swiss"]
[EventCountry "GER"]
[SourceTitle "playchess.com"]
[Source "ChessBase"]
[SourceQuality "1"]
[TimeControl "40/5400+30:1800+30"]

1. e4 {[%emt 0:00:03]} e6 {[%emt 0:00:03]} 2. d4 {[%emt 0:00:03]} d5 {[%emt 0:00:03]} 3. e5 {[%emt 0:00:04]} c5 {[%emt 0:00:04]} 4. c3 {[%emt 0:00:03]} Nc6 {[%emt 0:00:05]} 5. Nf3 {[%emt 0:00:05]} Bd7 {[%emt 0:00:14]} 6. Be2 {[%emt 0:01:53]} Qb6 {[%emt 0:00:47]} 7. O-O {[%emt 0:04:25]} Nge7 {[%emt 0:02:30]} 8. Na3 {[%emt 0:06:09]} Ng6 {[%emt 0:06:09]} 9. h4 {[%emt 0:22:00]} cxd4 {[%emt 0:08:36]} 10. cxd4 {[%emt 0:00:02]} Bxa3 {[%emt 0:01:13]} 11. bxa3 {[%emt 0:00:02]} Rc8 {[%emt 0:06:16]} 12. Be3 {[%emt 0:15:41]} Nge7 {[%emt 0:14:12]} 13. Rb1 {[%emt 0:04:39]} Qc7 {[%emt 0:02:05]} 14. Bd2 {[%emt 0:10:20]} Rb8 {[%emt 0:08:52]} 15. Qc2 {[%emt 0:06:03]} O-O {[%emt 0:03:01]} 16. Ng5 {[%emt 0:12:08]} g6 {[%emt 0:01:31]} 17. Bb4 {[%emt 0:03:52]} Rbc8 {[%emt 0:04:50]} 18. Bd6 {[%emt 0:02:12]} Qd8 {[%emt 0:05:22]} 19. Qd2 {[%emt 0:02:03]} Re8 {[%emt 0:06:34]} 20. g4 {[%emt 0:04:32]} Na5 {[%emt 0:06:04]} 21. Qf4 {[%emt 0:00:36]} Rf8 {[%emt 0:00:24]} 22. Qf6 {[%emt 0:00:47]} Nec6 {[%emt 0:04:57]} 23. Bxf8 {[%emt 0:01:59]} Qxf8 {[%emt 0:00:10]} 24. Rfd1 {[%emt 0:01:05]} Nd8 {[%emt 0:01:06]} 25. Rdc1 {[%emt 0:00:45]} Rxc1+ {[%emt 0:01:25]} 26. Rxc1 {[%emt 0:00:01]} Nac6 {[%emt 0:00:28]} 27. Qf4 {[%emt 0:01:41]} Qxa3 {[%emt 0:00:32]} 28. Qd2 {[%emt 0:00:39]} Nxd4 {[%emt 0:01:23]} 29. Rc7 {[%emt 0:00:24]} Nxe2+ {[%emt 0:00:46]} 30. Qxe2 {[%emt 0:00:01]} Be8 {[%emt 0:01:09]} 31. Qf3 {[%emt 0:00:37]} Qa5 {[%emt 0:02:29]} 32. Qc3 {[%emt 0:01:03]} Qxc3 {[%emt 0:08:10]} 33. Rxc3 {[%emt 0:00:01]} Nc6 {[%emt 0:00:39]} 34. f4 {[%emt 0:00:53]} h6 {[%emt 0:00:02]} 35. Nf3 {[%emt 0:00:14]} Kf8 {[%emt 0:00:11]} 36. Kf2 {[%emt 0:00:29]} Ke7 {[%emt 0:00:05]} 37. Ke3 {[%emt 0:00:30]} Kd8 {[%emt 0:00:40]} 38. Nd4 {[%emt 0:00:47]} Nxd4 {[%emt 0:00:45]} 39. Kxd4 {[%emt 0:00:03]} Bc6 {[%emt 0:00:40]} 40. Kc5 {[%emt 0:00:52]} Kc7 {[%emt 0:00:09]} 41. h5 {[%emt 0:09:00]} Be8 {[%emt 0:03:15]} 42. Rh3 {[%emt 0:02:46]} f5 {[%emt 0:02:54]} 43. hxg6 {[%emt 0:01:49]} fxg4 {[%emt 0:00:20]} 44. Rxh6 {[%emt 0:00:46]} g3 {[%emt 0:00:18]} 45. g7 {[%emt 0:00:24]} Bf7 {[%emt 0:00:06]} 46. Rg6 {[%emt 0:00:41]} Bg8 {[%emt 0:01:25]} 47. Rxg3 {[%emt 0:00:04]} Kd7 {[%emt 0:00:04]} 48. Rg6 {[%emt 0:00:30]} Ke7 {[%emt 0:00:12]} 49. Rf6 {[%emt 0:00:11]} b6+ {[%emt 0:00:16]} 50. Kd4 {[%emt 0:00:15]} b5 {[%emt 0:00:12]} 51. Rf8 {[%emt 0:00:09]} a5 {[%emt 0:00:04]} 52. Rxg8 {[%emt 0:00:20]} Kf7 {[%emt 0:32:43]} 53. Rb8 {[%emt 0:00:21]} Kxg7 {[%emt 0:00:00]} 54. Rxb5 {[%emt 0:00:06]} Kg6 {[%emt 0:00:00]} 55. Rxa5 {[%emt 0:00:22]} Kf5 {[%emt 0:01:30]} 56. Rxd5 {[%emt 0:00:12]} exd5 {[%emt 0:00:00]} 57. Kxd5 {[%emt 0:21:18]} 1-0

[Event "LEM Niedersachsen-A-Open 2025"]
[Site "Verden"]
[Date "2025.01.02"]
[Round "2.21"]
[White "Moerke, Niklas"]
[Black "Ehlert, Horst"]
[Result "1-0"]
[ECO "B41"]
[WhiteElo "1875"]
[BlackElo "1929"]
[Annotator "NA RC"]
[PlyCount "59"]
[EventDate "2024.12.27"]
[EventType "swiss"]
[EventCountry "GER"]
[SourceTitle "playchess.com"]
[Source "ChessBase"]
[SourceQuality "1"]
[TimeControl "40/5400+30:1800+30"]

1. e4 {[%emt 0:00:03]} c5 {[%emt 0:00:27]} 2. Nf3 {[%emt 0:00:06]} e6 {[%emt 0:00:20]} 3. d4 {[%emt 0:00:23]} cxd4 {[%emt 0:00:08]} 4. Nxd4 {[%emt 0:00:05]} a6 {[%emt 0:00:07]} 5. c4 {[%emt 0:00:39]} Qc7 {[%emt 0:00:26]} 6. Nc3 {[%emt 0:02:48]} Nf6 {[%emt 0:02:03]} 7. Be2 {[%emt 0:03:18]} d6 {[%emt 0:04:01]} 8. O-O {[%emt 0:00:35]} Be7 {[%emt 0:00:16]} 9. Be3 {[%emt 0:01:29]} Nbd7 {[%emt 0:05:35]} 10. f4 {[%emt 0:04:00]} b6 {[%emt 0:05:07]} 11. Bf3 {[%emt 0:04:54]} Bb7 {[%emt 0:01:25]} 12. Rc1 {[%emt 0:03:25]} O-O {[%emt 0:00:45]} 13. b4 {[%emt 0:01:47]} Rac8 {[%emt 0:04:16]} 14. b5 {[%emt 0:04:12]} a5 {[%emt 0:00:28]} 15. Nc6 {[%emt 0:00:51]} Nc5 {[%emt 0:17:16]} 16. Bxc5 {[%emt 0:03:31]} dxc5 {[%emt 0:34:07]} 17. e5 {[%emt 0:02:28]} Ne8 {[%emt 0:02:30]} 18. Qe2 {[%emt 0:04:22]} Bxc6 {[%emt 0:03:18]} 19. Bxc6 {[%emt 0:01:30]} Rd8 {[%emt 0:01:55]} 20. Rcd1 {[%emt 0:00:14]} Rd4 {[%emt 0:05:55]} 21. Ne4 {[%emt 0:07:50]} g6 {[%emt 0:01:16]} 22. Rf3 {[%emt 0:07:10]} Ng7 {[%emt 0:00:40]} 23. Rxd4 {[%emt 0:02:15]} cxd4 {[%emt 0:00:11]} 24. Rd3 {[%emt 0:00:33]} Rd8 {[%emt 0:02:35]} 25. g4 {[%emt 0:02:10]} h6 {[%emt 0:03:23]} 26. Qf2 {[%emt 0:03:32]} Bc5 {[%emt 0:02:32]} 27. Qh4 {[%emt 0:01:43]} h5 {[%emt 0:00:50]} 28. Nf6+ {[%emt 0:01:09]} Kf8 {[%emt 0:00:54]} 29. gxh5 {[%emt 0:00:41]} gxh5 {[%emt 0:01:32]} 30. Qg5 {[%emt 0:03:45]} 1-0

[Event "LEM Niedersachsen-A-Open 2025"]
[Site "Verden"]
[Date "2025.01.02"]
[Round "2.22"]
[White "Boehnke, Marc"]
[Black "Schramm, Kilian"]
[Result "0-1"]
[ECO "E17"]
[WhiteElo "1927"]
[BlackElo "1834"]
[Annotator "NA RC"]
[PlyCount "86"]
[EventDate "2024.12.27"]
[EventType "swiss"]
[EventCountry "GER"]
[SourceTitle "playchess.com"]
[Source "ChessBase"]
[SourceQuality "1"]
[TimeControl "40/5400+30:1800+30"]

1. d4 {[%emt 0:00:07]} Nf6 {[%emt 0:00:45]} 2. c4 {[%emt 0:00:15]} e6 {[%emt 0:00:22]} 3. Nf3 {[%emt 0:00:17]} b6 {[%emt 0:00:05]} 4. g3 {[%emt 0:00:05]} Bb7 {[%emt 0:00:03]} 5. Bg2 {[%emt 0:00:05]} Be7 {[%emt 0:00:04]} 6. Nc3 {[%emt 0:00:17]} Ne4 {[%emt 0:00:25]} 7. Qc2 {[%emt 0:01:06]} Nxc3 {[%emt 0:00:06]} 8. Qxc3 {[%emt 0:00:07]} Bf6 {[%emt 0:02:05]} 9. Qc2 {[%emt 0:00:55]} Bxd4 {[%emt 0:04:48]} 10. O-O {[%emt 0:00:21]} Bf6 {[%emt 0:00:20]} 11. Rd1 {[%emt 0:00:08]} d6 {[%emt 0:08:27]} 12. e4 {[%emt 0:01:25]} Nd7 {[%emt 0:00:23]} 13. Be3 {[%emt 0:00:28]} Qe7 {[%emt 0:01:53]} 14. Rac1 {[%emt 0:03:01]} c5 {[%emt 0:05:44]} 15. Qd3 {[%emt 0:03:23]} Bxb2 {[%emt 0:02:45]} 16. Rc2 {[%emt 0:00:07]} Bf6 {[%emt 0:02:35]} 17. Qxd6 {[%emt 0:03:42]} Qxd6 {[%emt 0:08:51]} 18. Rxd6 {[%emt 0:00:10]} Bxe4 {[%emt 0:03:00]} 19. Rcd2 {[%emt 0:00:17]} O-O-O {[%emt 0:04:28]} 20. Ng5 {[%emt 0:03:25]} Bxg2 {[%emt 0:02:03]} 21. Nxf7 {[%emt 0:02:53]} Be4 {[%emt 0:03:20]} 22. Nxh8 {[%emt 0:00:28]} Ne5 {[%emt 0:14:31]} 23. Rxd8+ {[%emt 0:02:14]} Bxd8 {[%emt 0:00:09]} 24. Rd1 {[%emt 0:15:49]} Bf3 {[%emt 0:00:28]} 25. Rc1 {[%emt 0:18:32]} Bf6 {[%emt 0:01:10]} 26. Re1 {[%emt 0:02:29]} Bh5 {[%emt 0:02:40]} 27. Kg2 {[%emt 0:02:19]} Nd3 {[%emt 0:02:06]} 28. Rb1 {[%emt 0:01:05]} g5 {[%emt 0:00:13]} 29. g4 {[%emt 0:02:36]} Be8 {[%emt 0:00:09]} 30. Rd1 {[%emt 0:01:08]} Ne5 {[%emt 0:00:50]} 31. h3 {[%emt 0:00:21]} Bxh8 {[%emt 0:01:21]} 32. Bxg5 {[%emt 0:00:05]} Bc6+ {[%emt 0:00:28]} 33. Kg3 {[%emt 0:00:30]} Nf7 {[%emt 0:01:03]} 34. Be3 {[%emt 0:00:41]} Kc7 {[%emt 0:02:08]} 35. h4 {[%emt 0:02:07]} Nd6 {[%emt 0:00:52]} 36. Rc1 {[%emt 0:02:02]} Be5+ {[%emt 0:03:40]} 37. f4 {[%emt 0:01:44]} Ne4+ {[%emt 0:00:05]} 38. Kf3 {[%emt 0:04:44]} Bd4 {[%emt 0:00:44]} 39. Rc2 {[%emt 0:00:38]} Nc3+ {[%emt 0:04:01]} 40. Kg3 {[%emt 0:00:29]} Be4 {[%emt 0:00:30]} 41. Bxd4 {[%emt 0:30:09]} cxd4 {[%emt 0:30:17]} 42. Rf2 {[%emt 0:00:15]} Bd3 {[%emt 0:01:15]} 43. f5 {[%emt 0:01:04]} Ne4+ {[%emt 0:00:05]} 0-1

[Event "LEM Niedersachsen-A-Open 2025"]
[Site "Verden"]
[Date "2025.01.02"]
[Round "2.23"]
[White "Kiesel, Lucas"]
[Black "Bisa, Gani"]
[Result "1-0"]
[ECO "E17"]
[WhiteElo "2023"]
[BlackElo "1885"]
[Annotator "NA RC"]
[PlyCount "104"]
[EventDate "2024.12.27"]
[EventType "swiss"]
[EventCountry "GER"]
[SourceTitle "playchess.com"]
[Source "ChessBase"]
[SourceQuality "1"]
[TimeControl "40/5400+30:1800+30"]

1. d4 {[%emt 0:00:02]} Nf6 {[%emt 0:00:08]} 2. c4 {[%emt 0:00:03]} e6 {[%emt 0:00:14]} 3. Nf3 {[%emt 0:00:07]} b6 {[%emt 0:00:15]} 4. g3 {[%emt 0:01:17]} Bb7 {[%emt 0:00:14]} 5. Bg2 {[%emt 0:00:07]} Be7 {[%emt 0:00:38]} 6. O-O {[%emt 0:00:05]} O-O {[%emt 0:00:08]} 7. Nbd2 {[%emt 0:01:34]} d6 {[%emt 0:00:29]} 8. b3 {[%emt 0:01:13]} c5 {[%emt 0:00:22]} 9. Bb2 {[%emt 0:03:13]} cxd4 {[%emt 0:00:55]} 10. Nxd4 {[%emt 0:00:06]} Bxg2 {[%emt 0:00:15]} 11. Kxg2 {[%emt 0:00:03]} d5 {[%emt 0:01:21]} 12. e3 {[%emt 0:04:27]} Qd7 {[%emt 0:00:27]} 13. Qf3 {[%emt 0:03:03]} Nc6 {[%emt 0:02:01]} 14. Nxc6 {[%emt 0:05:45]} Qxc6 {[%emt 0:00:12]} 15. Rac1 {[%emt 0:00:56]} Rad8 {[%emt 0:01:42]} 16. Rfd1 {[%emt 0:01:51]} Qa8 {[%emt 0:04:06]} 17. h3 {[%emt 0:08:58]} a5 {[%emt 0:01:05]} 18. a4 {[%emt 0:01:22]} h6 {[%emt 0:01:18]} 19. Bd4 {[%emt 0:11:59]} Qb8 {[%emt 0:03:26]} 20. cxd5 {[%emt 0:04:27]} Rxd5 {[%emt 0:01:35]} 21. Nc4 {[%emt 0:03:42]} Rf5 {[%emt 0:02:05]} 22. Qe2 {[%emt 0:17:53]} b5 {[%emt 0:01:54]} 23. g4 {[%emt 0:13:48]} Qa8+ {[%emt 0:05:16]} 24. f3 {[%emt 0:00:36]} Rg5 {[%emt 0:00:53]} 25. Ne5 {[%emt 0:02:24]} Qd5 {[%emt 0:04:53]} 26. Qxb5 {[%emt 0:03:54]} Qa8 {[%emt 0:03:47]} 27. h4 {[%emt 0:01:29]} Rxg4+ {[%emt 0:00:20]} 28. Nxg4 {[%emt 0:00:09]} Nxg4 {[%emt 0:00:11]} 29. Qc6 {[%emt 0:00:09]} Nf6 {[%emt 0:01:58]} 30. Qxa8 {[%emt 0:00:24]} Rxa8 {[%emt 0:00:02]} 31. Rc7 {[%emt 0:02:17]} Nd5 {[%emt 0:00:25]} 32. Ra7 {[%emt 0:00:31]} Rd8 {[%emt 0:01:26]} 33. Rh1 {[%emt 0:02:37]} e5 {[%emt 0:01:18]} 34. Bxe5 {[%emt 0:00:35]} Nxe3+ {[%emt 0:00:14]} 35. Kh3 {[%emt 0:00:35]} Nf5 {[%emt 0:00:35]} 36. Rxa5 {[%emt 0:01:23]} Nxh4 {[%emt 0:01:00]} 37. Ra7 {[%emt 0:03:42]} Nf5 {[%emt 0:01:58]} 38. Rb1 {[%emt 0:01:10]} h5 {[%emt 0:04:17]} 39. b4 {[%emt 0:00:26]} f6 {[%emt 0:00:55]} 40. Bc7 {[%emt 0:01:18]} Rd3 {[%emt 0:00:32]} 41. Ra5 {[%emt 0:10:53]} Rxf3+ {[%emt 0:01:30]} 42. Kh2 {[%emt 0:01:51]} g6 {[%emt 0:01:44]} 43. Rxf5 {[%emt 0:02:04]} Rxf5 {[%emt 0:00:29]} 44. b5 {[%emt 0:00:04]} Rc5 {[%emt 0:01:37]} 45. b6 {[%emt 0:02:56]} Rxc7 {[%emt 0:01:22]} 46. bxc7 {[%emt 0:00:03]} Bd6+ {[%emt 0:00:16]} 47. Kg2 {[%emt 0:00:03]} Bxc7 {[%emt 0:00:12]} 48. Rb7 {[%emt 0:00:03]} Ba5 {[%emt 0:00:45]} 49. Ra7 {[%emt 0:00:04]} Bc3 {[%emt 0:00:16]} 50. a5 {[%emt 0:01:21]} g5 {[%emt 0:00:34]} 51. a6 {[%emt 0:00:10]} g4 {[%emt 0:04:09]} 52. Rd7 {[%emt 0:00:54]} Ba5 {[%emt 1:18:46]} 1-0

[Event "LEM Niedersachsen-A-Open 2025"]
[Site "Verden"]
[Date "2025.01.02"]
[Round "2.24"]
[White "Bangert, Jonas"]
[Black "Martin, Dennis"]
[Result "1-0"]
[ECO "D38"]
[WhiteElo "1894"]
[BlackElo "2005"]
[Annotator "NA RC"]
[PlyCount "131"]
[EventDate "2024.12.27"]
[EventType "swiss"]
[EventCountry "GER"]
[SourceTitle "playchess.com"]
[Source "ChessBase"]
[SourceQuality "1"]
[TimeControl "40/5400+30:1800+30"]

1. d4 {[%emt 0:00:02]} Nf6 {[%emt 0:00:09]} 2. Nf3 {[%emt 0:00:06]} e6 {[%emt 0:00:07]} 3. c4 {[%emt 0:00:55]} d5 {[%emt 0:00:03]} 4. Nc3 {[%emt 0:00:04]} Bb4 {[%emt 0:00:13]} 5. Qa4+ {[%emt 0:01:03]} Nc6 {[%emt 0:00:02]} 6. Bg5 {[%emt 0:01:39]} Bd7 {[%emt 0:00:17]} 7. Qb3 {[%emt 0:05:02]} dxc4 {[%emt 0:01:22]} 8. Qxc4 {[%emt 0:00:13]} h6 {[%emt 0:02:30]} 9. Bxf6 {[%emt 0:02:24]} Qxf6 {[%emt 0:00:03]} 10. e3 {[%emt 0:01:03]} Qe7 {[%emt 0:03:19]} 11. a3 {[%emt 0:02:54]} Bd6 {[%emt 0:05:03]} 12. Be2 {[%emt 0:02:31]} e5 {[%emt 0:03:12]} 13. d5 {[%emt 0:06:01]} Nd8 {[%emt 0:00:46]} 14. O-O {[%emt 0:03:03]} a6 {[%emt 0:01:05]} 15. b4 {[%emt 0:13:56]} b5 {[%emt 0:04:05]} 16. Qd3 {[%emt 0:03:17]} f5 {[%emt 0:00:25]} 17. e4 {[%emt 0:00:24]} f4 {[%emt 0:00:12]} 18. h3 {[%emt 0:06:21]} O-O {[%emt 0:01:50]} 19. Nh2 {[%emt 0:00:35]} Nf7 {[%emt 0:00:07]} 20. Bg4 {[%emt 0:01:28]} Ng5 {[%emt 0:00:38]} 21. Bxd7 {[%emt 0:01:24]} Qxd7 {[%emt 0:06:07]} 22. f3 {[%emt 0:00:02]} h5 {[%emt 0:06:56]} 23. Rfb1 {[%emt 0:03:03]} Qe7 {[%emt 0:02:31]} 24. Nf1 {[%emt 0:03:48]} Rf6 {[%emt 0:01:26]} 25. Kh1 {[%emt 0:03:59]} Rg6 {[%emt 0:03:03]} 26. Qe2 {[%emt 0:02:10]} Nh7 {[%emt 0:01:01]} 27. Nd2 {[%emt 0:07:40]} Nf6 {[%emt 0:04:20]} 28. Qf2 {[%emt 0:03:41]} Nd7 {[%emt 0:00:05]} 29. Nb3 {[%emt 0:01:02]} Rh6 {[%emt 0:02:10]} 30. Na5 {[%emt 0:03:00]} Nb8 {[%emt 0:01:13]} 31. Rc1 {[%emt 0:04:59]} g5 {[%emt 0:02:21]} 32. Ne2 {[%emt 0:06:03]} Rg6 {[%emt 0:01:34]} 33. Rc2 {[%emt 0:01:11]} g4 {[%emt 0:00:21]} 34. Rac1 {[%emt 0:01:05]} Qd7 {[%emt 0:01:46]} 35. Qh4 {[%emt 0:02:39]} Rg7 {[%emt 0:06:34]} 36. Kh2 {[%emt 0:02:07]} Qe8 {[%emt 0:01:28]} 37. Qe1 {[%emt 0:06:57]} Qg6 {[%emt 0:01:02]} 38. Qf1 {[%emt 0:00:35]} Kh7 {[%emt 0:03:05]} 39. Nb7 {[%emt 0:00:27]} Ra7 {[%emt 0:02:59]} 40. Nxd6 {[%emt 0:00:26]} cxd6 {[%emt 0:00:02]} 41. Rc8 {[%emt 0:02:46]} Rab7 {[%emt 0:00:06]} 42. g3 {[%emt 0:13:32]} fxg3+ {[%emt 0:12:54]} 43. Nxg3 {[%emt 0:00:07]} Qg5 {[%emt 0:00:27]} 44. fxg4 {[%emt 0:02:37]} Rbf7 {[%emt 0:06:43]} 45. Nf5 {[%emt 0:10:37]} hxg4 {[%emt 0:00:06]} 46. hxg4 {[%emt 0:01:43]} Kg6 {[%emt 0:00:08]} 47. Kg3 {[%emt 0:01:04]} Nd7 {[%emt 0:04:07]} 48. Qf3 {[%emt 0:01:12]} Nf6 {[%emt 0:01:57]} 49. Rh1 {[%emt 0:00:55]} Rh7 {[%emt 0:00:42]} 50. Rh8 {[%emt 0:00:44]} Rxh1 {[%emt 0:02:20]} 51. Rxh1 {[%emt 0:00:07]} Rf8 {[%emt 0:02:30]} 52. Rh2 {[%emt 0:00:48]} Rd8 {[%emt 0:01:08]} 53. Rh6+ {[%emt 0:00:52]} Kf7 {[%emt 0:00:03]} 54. Rh1 {[%emt 0:00:16]} Rd7 {[%emt 0:00:52]} 55. Rh8 {[%emt 0:00:36]} Rc7 {[%emt 0:00:23]} 56. Nxd6+ {[%emt 0:00:33]} Ke7 {[%emt 0:00:36]} 57. Nf5+ {[%emt 0:00:10]} Kd7 {[%emt 0:00:04]} 58. Kh3 {[%emt 0:00:58]} Rc2 {[%emt 0:01:08]} 59. Rf8 {[%emt 0:00:26]} Qg6 {[%emt 0:02:13]} 60. Rh8 {[%emt 0:00:19]} Rc4 {[%emt 0:02:43]} 61. Ng3 {[%emt 0:00:29]} Rc2 {[%emt 0:03:12]} 62. Ra8 {[%emt 0:00:46]} Kc7 {[%emt 0:01:41]} 63. Rxa6 {[%emt 0:00:25]} Qh7+ {[%emt 0:00:15]} 64. Nh5 {[%emt 0:00:08]} Nxe4 {[%emt 0:00:22]} 65. Ra7+ {[%emt 0:00:13]} Kb6 {[%emt 0:00:06]} 66. Qe3+ {[%emt 0:00:25]} 1-0